{"text_format":"3","workbook":"xlsx","n_sheets":1,"sheets":["Gada darba laika uzsk. tabula"],"not_rendered":{"defined_names":2},"read":"whole","date_system":"1900"}

{"sheet":"Gada darba laika uzsk. tabula","index":0,"n_rows":140,"n_cols":12,"rows_kept":140,"merged":[[0,1,1,11],[2,6,2,7],[2,8,2,9],[5,1,5,11],[15,3,15,4],[26,3,26,4],[37,3,37,4],[39,1,39,11],[49,3,49,4],[60,3,60,4],[71,3,71,4],[73,1,73,11],[83,3,83,4],[94,3,94,4],[105,3,105,4],[107,1,107,11],[117,3,117,4],[128,3,128,4],[139,3,139,4]]}
[null,"Darbinieka darba laika uzskaites karte"]
[]
[null,"Darbinieka vārds, uzvārds:",null,"E-pasts:",null,null,"Kopsumma no gada sākuma līdz dotajam datumam:"]
[null,"Vadītājs:",null,"Tālrunis:",null,null,"Pastāvīgās darba stundas:",{"$f":"SUM(C16,C27,C38,C50,C61,C72,C84,C95,C106,C118,C129,C140)","v":0},"Virsstundas:",{"$f":"SUM(F16,F27,F38,F50,F61,F72,F84,F95,F106,F118,F129,F140)","v":0},"Kopā:",{"$f":"SUM(H4,J4)","v":0}]
[]
[null,"Janvāris, februāris, marts      Darbinieka darba laika uzskaites karte: Dienas, nedēļas, mēneša, gada"]
[null,"Janvāris","1. nedēļa","Virsstundu","2. nedēļa","Virsstundas ","3. nedēļa","Virsstundas  ","4. nedēļa","Virsstundas   ","5. nedēļa","Virsstundas    "]
[null,"Pirmdiena"]
[null,"Otrdiena"]
[null,"Trešdiena"]
[null,"Ceturtdiena"]
[null,"Piektdiena"]
[null,"Sestdiena"]
[null,"Svētdiena"]
[null,"Nedēļas kopējais stundu skaits",{"$f":"SUBTOTAL(109,Janvāris[1. nedēļa])","v":0},{"$f":"SUBTOTAL(109,Janvāris[Virsstundu])","v":0},{"$f":"SUBTOTAL(109,Janvāris[2. nedēļa])","v":0},{"$f":"SUBTOTAL(109,Janvāris[[Virsstundas ]])","v":0},{"$f":"SUBTOTAL(109,Janvāris[3. nedēļa])","v":0},{"$f":"SUBTOTAL(109,Janvāris[[Virsstundas  ]])","v":0},{"$f":"SUBTOTAL(109,Janvāris[4. nedēļa])","v":0},{"$f":"SUBTOTAL(109,Janvāris[[Virsstundas   ]])","v":0},{"$f":"SUBTOTAL(109,Janvāris[5. nedēļa])","v":0},{"$f":"SUBTOTAL(109,Janvāris[[Virsstundas    ]])","v":0}]
[null,"Janvāris, kopā: Pastāvīgās darba stundas",{"$f":"SUM(Janvāris[[#Totals],[1. nedēļa]],Janvāris[[#Totals],[2. nedēļa]],Janvāris[[#Totals],[3. nedēļa]],Janvāris[[#Totals],[4. nedēļa]],Janvāris[[#Totals],[5. nedēļa]])","v":0},"Janvāris, kopā: Virsstundu",null,{"$f":"SUM(Janvāris[[#Totals],[Virsstundu]],Janvāris[[#Totals],[Virsstundas ]],Janvāris[[#Totals],[Virsstundas  ]],Janvāris[[#Totals],[Virsstundas   ]],Janvāris[[#Totals],[Virsstundas    ]])","v":0}]
[]
[null,"Februāris","1. nedēļa","Virsstundu","2. nedēļa","Virsstundas ","3. nedēļa","Virsstundas  ","4. nedēļa","Virsstundas   ","5. nedēļa","Virsstundas    "]
[null,"Pirmdiena"]
[null,"Otrdiena"]
[null,"Trešdiena"]
[null,"Ceturtdiena"]
[null,"Piektdiena"]
[null,"Sestdiena"]
[null,"Svētdiena"]
[null,"Nedēļas kopējais stundu skaits",{"$f":"SUBTOTAL(109,Februāris[1. nedēļa])","v":0},{"$f":"SUBTOTAL(109,Februāris[Virsstundu])","v":0},{"$f":"SUBTOTAL(109,Februāris[2. nedēļa])","v":0},{"$f":"SUBTOTAL(109,Februāris[[Virsstundas ]])","v":0},{"$f":"SUBTOTAL(109,Februāris[3. nedēļa])","v":0},{"$f":"SUBTOTAL(109,Februāris[[Virsstundas  ]])","v":0},{"$f":"SUBTOTAL(109,Februāris[4. nedēļa])","v":0},{"$f":"SUBTOTAL(109,Februāris[[Virsstundas   ]])","v":0},{"$f":"SUBTOTAL(109,Februāris[5. nedēļa])","v":0},{"$f":"SUBTOTAL(109,Februāris[[Virsstundas    ]])","v":0}]
[null,"Februāris, kopā: Pastāvīgās darba stundas",{"$f":"SUM(Februāris[[#Totals],[1. nedēļa]],Februāris[[#Totals],[2. nedēļa]],Februāris[[#Totals],[3. nedēļa]],Februāris[[#Totals],[4. nedēļa]],Februāris[[#Totals],[5. nedēļa]])","v":0},"Februāris, kopā: Virsstundu",null,{"$f":"SUM(Februāris[[#Totals],[Virsstundu]],Februāris[[#Totals],[Virsstundas ]],Februāris[[#Totals],[Virsstundas  ]],Februāris[[#Totals],[Virsstundas   ]],Februāris[[#Totals],[Virsstundas    ]])","v":0}]
[]
[null,"Marts","1. nedēļa","Virsstundu","2. nedēļa","Virsstundas ","3. nedēļa","Virsstundas  ","4. nedēļa","Virsstundas   ","5. nedēļa","Virsstundas    "]
[null,"Pirmdiena"]
[null,"Otrdiena"]
[null,"Trešdiena"]
[null,"Ceturtdiena"]
[null,"Piektdiena"]
[null,"Sestdiena"]
[null,"Svētdiena"]
[null,"Nedēļas kopējais stundu skaits",{"$f":"SUBTOTAL(109,Marts[1. nedēļa])","v":0},{"$f":"SUBTOTAL(109,Marts[Virsstundu])","v":0},{"$f":"SUBTOTAL(109,Marts[2. nedēļa])","v":0},{"$f":"SUBTOTAL(109,Marts[[Virsstundas ]])","v":0},{"$f":"SUBTOTAL(109,Marts[3. nedēļa])","v":0},{"$f":"SUBTOTAL(109,Marts[[Virsstundas  ]])","v":0},{"$f":"SUBTOTAL(109,Marts[4. nedēļa])","v":0},{"$f":"SUBTOTAL(109,Marts[[Virsstundas   ]])","v":0},{"$f":"SUBTOTAL(109,Marts[5. nedēļa])","v":0},{"$f":"SUBTOTAL(109,Marts[[Virsstundas    ]])","v":0}]
[null,"Marts, kopā: Pastāvīgās darba stundas",{"$f":"SUM(Marts[[#Totals],[1. nedēļa]],Marts[[#Totals],[2. nedēļa]],Marts[[#Totals],[3. nedēļa]],Marts[[#Totals],[4. nedēļa]],Marts[[#Totals],[5. nedēļa]])","v":0},"Marts, kopā: Virsstundu",null,{"$f":"SUM(Marts[[#Totals],[Virsstundu]],Marts[[#Totals],[Virsstundas ]],Marts[[#Totals],[Virsstundas  ]],Marts[[#Totals],[Virsstundas   ]],Marts[[#Totals],[Virsstundas    ]])","v":0}]
[]
[null,"Aprīlis, maijs, jūnijs      Darbinieka darba laika uzskaites karte: Dienas, nedēļas, mēneša, gada"]
[null,"Aprīlis","1. nedēļa","Virsstundu","2. nedēļa","Virsstundas ","3. nedēļa","Virsstundas  ","4. nedēļa","Virsstundas   ","5. nedēļa","Virsstundas    "]
[null,"Pirmdiena"]
[null,"Otrdiena"]
[null,"Trešdiena"]
[null,"Ceturtdiena"]
[null,"Piektdiena"]
[null,"Sestdiena"]
[null,"Svētdiena"]
[null,"Nedēļas kopējais stundu skaits",{"$f":"SUBTOTAL(109,Aprīlis[1. nedēļa])","v":0},{"$f":"SUBTOTAL(109,Aprīlis[Virsstundu])","v":0},{"$f":"SUBTOTAL(109,Aprīlis[2. nedēļa])","v":0},{"$f":"SUBTOTAL(109,Aprīlis[[Virsstundas ]])","v":0},{"$f":"SUBTOTAL(109,Aprīlis[3. nedēļa])","v":0},{"$f":"SUBTOTAL(109,Aprīlis[[Virsstundas  ]])","v":0},{"$f":"SUBTOTAL(109,Aprīlis[4. nedēļa])","v":0},{"$f":"SUBTOTAL(109,Aprīlis[[Virsstundas   ]])","v":0},{"$f":"SUBTOTAL(109,Aprīlis[5. nedēļa])","v":0},{"$f":"SUBTOTAL(109,Aprīlis[[Virsstundas    ]])","v":0}]
[null,"Aprīlis, kopā: Pastāvīgās darba stundas",{"$f":"SUM(Aprīlis[[#Totals],[1. nedēļa]],Aprīlis[[#Totals],[2. nedēļa]],Aprīlis[[#Totals],[3. nedēļa]],Aprīlis[[#Totals],[4. nedēļa]],Aprīlis[[#Totals],[5. nedēļa]])","v":0},"Aprīlis, kopā: Virsstundu",null,{"$f":"SUM(Aprīlis[[#Totals],[Virsstundu]],Aprīlis[[#Totals],[Virsstundas ]],Aprīlis[[#Totals],[Virsstundas  ]],Aprīlis[[#Totals],[Virsstundas   ]],Aprīlis[[#Totals],[Virsstundas    ]])","v":0}]
[]
[null,"Maijs","1. nedēļa","Virsstundu","2. nedēļa","Virsstundas ","3. nedēļa","Virsstundas  ","4. nedēļa","Virsstundas   ","5. nedēļa","Virsstundas    "]
[null,"Pirmdiena"]
[null,"Otrdiena"]
[null,"Trešdiena"]
[null,"Ceturtdiena"]
[null,"Piektdiena"]
[null,"Sestdiena"]
[null,"Svētdiena"]
[null,"Nedēļas kopējais stundu skaits",{"$f":"SUBTOTAL(109,Maijs[1. nedēļa])","v":0},{"$f":"SUBTOTAL(109,Maijs[Virsstundu])","v":0},{"$f":"SUBTOTAL(109,Maijs[2. nedēļa])","v":0},{"$f":"SUBTOTAL(109,Maijs[[Virsstundas ]])","v":0},{"$f":"SUBTOTAL(109,Maijs[3. nedēļa])","v":0},{"$f":"SUBTOTAL(109,Maijs[[Virsstundas  ]])","v":0},{"$f":"SUBTOTAL(109,Maijs[4. nedēļa])","v":0},{"$f":"SUBTOTAL(109,Maijs[[Virsstundas   ]])","v":0},{"$f":"SUBTOTAL(109,Maijs[5. nedēļa])","v":0},{"$f":"SUBTOTAL(109,Maijs[[Virsstundas    ]])","v":0}]
[null,"Maijs, kopā: Pastāvīgās darba stundas",{"$f":"SUM(Maijs[[#Totals],[1. nedēļa]],Maijs[[#Totals],[2. nedēļa]],Maijs[[#Totals],[3. nedēļa]],Maijs[[#Totals],[4. nedēļa]],Maijs[[#Totals],[5. nedēļa]])","v":0},"Maijs, kopā: Virsstundu",null,{"$f":"SUM(Maijs[[#Totals],[Virsstundu]],Maijs[[#Totals],[Virsstundas ]],Maijs[[#Totals],[Virsstundas  ]],Maijs[[#Totals],[Virsstundas   ]],Maijs[[#Totals],[Virsstundas    ]])","v":0}]
[]
[null,"Jūnijs","1. nedēļa","Virsstundu","2. nedēļa","Virsstundas ","3. nedēļa","Virsstundas  ","4. nedēļa","Virsstundas   ","5. nedēļa","Virsstundas    "]
[null,"Pirmdiena"]
[null,"Otrdiena"]
[null,"Trešdiena"]
[null,"Ceturtdiena"]
[null,"Piektdiena"]
[null,"Sestdiena"]
[null,"Svētdiena"]
[null,"Nedēļas kopējais stundu skaits",{"$f":"SUBTOTAL(109,Jūnijs[1. nedēļa])","v":0},{"$f":"SUBTOTAL(109,Jūnijs[Virsstundu])","v":0},{"$f":"SUBTOTAL(109,Jūnijs[2. nedēļa])","v":0},{"$f":"SUBTOTAL(109,Jūnijs[[Virsstundas ]])","v":0},{"$f":"SUBTOTAL(109,Jūnijs[3. nedēļa])","v":0},{"$f":"SUBTOTAL(109,Jūnijs[[Virsstundas  ]])","v":0},{"$f":"SUBTOTAL(109,Jūnijs[4. nedēļa])","v":0},{"$f":"SUBTOTAL(109,Jūnijs[[Virsstundas   ]])","v":0},{"$f":"SUBTOTAL(109,Jūnijs[5. nedēļa])","v":0},{"$f":"SUBTOTAL(109,Jūnijs[[Virsstundas    ]])","v":0}]
[null,"Jūnijs, kopā: Pastāvīgās darba stundas",{"$f":"SUM(Jūnijs[[#Totals],[1. nedēļa]],Jūnijs[[#Totals],[2. nedēļa]],Jūnijs[[#Totals],[3. nedēļa]],Jūnijs[[#Totals],[4. nedēļa]],Jūnijs[[#Totals],[5. nedēļa]])","v":0},"Jūnijs, kopā: Virsstundu",null,{"$f":"SUM(Jūnijs[[#Totals],[Virsstundu]],Jūnijs[[#Totals],[Virsstundas ]],Jūnijs[[#Totals],[Virsstundas  ]],Jūnijs[[#Totals],[Virsstundas   ]],Jūnijs[[#Totals],[Virsstundas    ]])","v":0}]
[]
[null,"Jūlijs, augusts, septembris      Darbinieka darba laika uzskaites karte: Dienas, nedēļas, mēneša, gada"]
[null,"Jūlijs","1. nedēļa","Virsstundu","2. nedēļa","Virsstundas ","3. nedēļa","Virsstundas  ","4. nedēļa","Virsstundas   ","5. nedēļa","Virsstundas    "]
[null,"Pirmdiena"]
[null,"Otrdiena"]
[null,"Trešdiena"]
[null,"Ceturtdiena"]
[null,"Piektdiena"]
[null,"Sestdiena"]
[null,"Svētdiena"]
[null,"Nedēļas kopējais stundu skaits",{"$f":"SUBTOTAL(109,Jūlijs[1. nedēļa])","v":0},{"$f":"SUBTOTAL(109,Jūlijs[Virsstundu])","v":0},{"$f":"SUBTOTAL(109,Jūlijs[2. nedēļa])","v":0},{"$f":"SUBTOTAL(109,Jūlijs[[Virsstundas ]])","v":0},{"$f":"SUBTOTAL(109,Jūlijs[3. nedēļa])","v":0},{"$f":"SUBTOTAL(109,Jūlijs[[Virsstundas  ]])","v":0},{"$f":"SUBTOTAL(109,Jūlijs[4. nedēļa])","v":0},{"$f":"SUBTOTAL(109,Jūlijs[[Virsstundas   ]])","v":0},{"$f":"SUBTOTAL(109,Jūlijs[5. nedēļa])","v":0},{"$f":"SUBTOTAL(109,Jūlijs[[Virsstundas    ]])","v":0}]
[null,"Jūlijs, kopā: Pastāvīgās darba stundas",{"$f":"SUM(Jūlijs[[#Totals],[1. nedēļa]],Jūlijs[[#Totals],[2. nedēļa]],Jūlijs[[#Totals],[3. nedēļa]],Jūlijs[[#Totals],[4. nedēļa]],Jūlijs[[#Totals],[5. nedēļa]])","v":0},"Jūlijs, kopā: Virsstundu",null,{"$f":"SUM(Jūlijs[[#Totals],[Virsstundu]],Jūlijs[[#Totals],[Virsstundas ]],Jūlijs[[#Totals],[Virsstundas  ]],Jūlijs[[#Totals],[Virsstundas   ]],Jūlijs[[#Totals],[Virsstundas    ]])","v":0}]
[]
[null,"Augusts","1. nedēļa","Virsstundu","2. nedēļa","Virsstundas ","3. nedēļa","Virsstundas  ","4. nedēļa","Virsstundas   ","5. nedēļa","Virsstundas    "]
[null,"Pirmdiena"]
[null,"Otrdiena"]
[null,"Trešdiena"]
[null,"Ceturtdiena"]
[null,"Piektdiena"]
[null,"Sestdiena"]
[null,"Svētdiena"]
[null,"Nedēļas kopējais stundu skaits",{"$f":"SUBTOTAL(109,Augusts[1. nedēļa])","v":0},{"$f":"SUBTOTAL(109,Augusts[Virsstundu])","v":0},{"$f":"SUBTOTAL(109,Augusts[2. nedēļa])","v":0},{"$f":"SUBTOTAL(109,Augusts[[Virsstundas ]])","v":0},{"$f":"SUBTOTAL(109,Augusts[3. nedēļa])","v":0},{"$f":"SUBTOTAL(109,Augusts[[Virsstundas  ]])","v":0},{"$f":"SUBTOTAL(109,Augusts[4. nedēļa])","v":0},{"$f":"SUBTOTAL(109,Augusts[[Virsstundas   ]])","v":0},{"$f":"SUBTOTAL(109,Augusts[5. nedēļa])","v":0},{"$f":"SUBTOTAL(109,Augusts[[Virsstundas    ]])","v":0}]
[null,"Augusts, kopā: Pastāvīgās darba stundas",{"$f":"SUM(Augusts[[#Totals],[1. nedēļa]],Augusts[[#Totals],[2. nedēļa]],Augusts[[#Totals],[3. nedēļa]],Augusts[[#Totals],[4. nedēļa]],Augusts[[#Totals],[5. nedēļa]])","v":0},"Augusts, kopā: Virsstundu",null,{"$f":"SUM(Augusts[[#Totals],[Virsstundu]],Augusts[[#Totals],[Virsstundas ]],Augusts[[#Totals],[Virsstundas  ]],Augusts[[#Totals],[Virsstundas   ]],Augusts[[#Totals],[Virsstundas    ]])","v":0}]
[]
[null,"Septembris","1. nedēļa","Virsstundu","2. nedēļa","Virsstundas ","3. nedēļa","Virsstundas  ","4. nedēļa","Virsstundas   ","5. nedēļa","Virsstundas    "]
[null,"Pirmdiena"]
[null,"Otrdiena"]
[null,"Trešdiena"]
[null,"Ceturtdiena"]
[null,"Piektdiena"]
[null,"Sestdiena"]
[null,"Svētdiena"]
[null,"Nedēļas kopējais stundu skaits",{"$f":"SUBTOTAL(109,Septembris[1. nedēļa])","v":0},{"$f":"SUBTOTAL(109,Septembris[Virsstundu])","v":0},{"$f":"SUBTOTAL(109,Septembris[2. nedēļa])","v":0},{"$f":"SUBTOTAL(109,Septembris[[Virsstundas ]])","v":0},{"$f":"SUBTOTAL(109,Septembris[3. nedēļa])","v":0},{"$f":"SUBTOTAL(109,Septembris[[Virsstundas  ]])","v":0},{"$f":"SUBTOTAL(109,Septembris[4. nedēļa])","v":0},{"$f":"SUBTOTAL(109,Septembris[[Virsstundas   ]])","v":0},{"$f":"SUBTOTAL(109,Septembris[5. nedēļa])","v":0},{"$f":"SUBTOTAL(109,Septembris[[Virsstundas    ]])","v":0}]
[null,"Septembris, kopā: Pastāvīgās darba stundas",{"$f":"SUM(Septembris[[#Totals],[1. nedēļa]],Septembris[[#Totals],[2. nedēļa]],Septembris[[#Totals],[3. nedēļa]],Septembris[[#Totals],[4. nedēļa]],Septembris[[#Totals],[5. nedēļa]])","v":0},"Septembris, kopā: Virsstundu",null,{"$f":"SUM(Septembris[[#Totals],[Virsstundu]],Septembris[[#Totals],[Virsstundas ]],Septembris[[#Totals],[Virsstundas  ]],Septembris[[#Totals],[Virsstundas   ]],Septembris[[#Totals],[Virsstundas    ]])","v":0}]
[]
[null,"Oktobris, novembris, decembris      Darbinieka darba laika uzskaites karte: Dienas, nedēļas, mēneša, gada"]
[null,"Oktobris","1. nedēļa","Virsstundu","2. nedēļa","Virsstundas ","3. nedēļa","Virsstundas  ","4. nedēļa","Virsstundas   ","5. nedēļa","Virsstundas    "]
[null,"Pirmdiena"]
[null,"Otrdiena"]
[null,"Trešdiena"]
[null,"Ceturtdiena"]
[null,"Piektdiena"]
[null,"Sestdiena"]
[null,"Svētdiena"]
[null,"Nedēļas kopējais stundu skaits",{"$f":"SUBTOTAL(109,Oktobris[1. nedēļa])","v":0},{"$f":"SUBTOTAL(109,Oktobris[Virsstundu])","v":0},{"$f":"SUBTOTAL(109,Oktobris[2. nedēļa])","v":0},{"$f":"SUBTOTAL(109,Oktobris[[Virsstundas ]])","v":0},{"$f":"SUBTOTAL(109,Oktobris[3. nedēļa])","v":0},{"$f":"SUBTOTAL(109,Oktobris[[Virsstundas  ]])","v":0},{"$f":"SUBTOTAL(109,Oktobris[4. nedēļa])","v":0},{"$f":"SUBTOTAL(109,Oktobris[[Virsstundas   ]])","v":0},{"$f":"SUBTOTAL(109,Oktobris[5. nedēļa])","v":0},{"$f":"SUBTOTAL(109,Oktobris[[Virsstundas    ]])","v":0}]
[null,"Oktobris, kopā: Pastāvīgās darba stundas",{"$f":"SUM(Oktobris[[#Totals],[1. nedēļa]],Oktobris[[#Totals],[2. nedēļa]],Oktobris[[#Totals],[3. nedēļa]],Oktobris[[#Totals],[4. nedēļa]],Oktobris[[#Totals],[5. nedēļa]])","v":0},"Oktobris, kopā: Virsstundu",null,{"$f":"SUM(Oktobris[[#Totals],[Virsstundu]],Oktobris[[#Totals],[Virsstundas ]],Oktobris[[#Totals],[Virsstundas  ]],Oktobris[[#Totals],[Virsstundas   ]],Oktobris[[#Totals],[Virsstundas    ]])","v":0}]
[]
[null,"Novembris","1. nedēļa","Virsstundu","2. nedēļa","Virsstundas ","3. nedēļa","Virsstundas  ","4. nedēļa","Virsstundas   ","5. nedēļa","Virsstundas    "]
[null,"Pirmdiena"]
[null,"Otrdiena"]
[null,"Trešdiena"]
[null,"Ceturtdiena"]
[null,"Piektdiena"]
[null,"Sestdiena"]
[null,"Svētdiena"]
[null,"Nedēļas kopējais stundu skaits",{"$f":"SUBTOTAL(109,Novembris[1. nedēļa])","v":0},{"$f":"SUBTOTAL(109,Novembris[Virsstundu])","v":0},{"$f":"SUBTOTAL(109,Novembris[2. nedēļa])","v":0},{"$f":"SUBTOTAL(109,Novembris[[Virsstundas ]])","v":0},{"$f":"SUBTOTAL(109,Novembris[3. nedēļa])","v":0},{"$f":"SUBTOTAL(109,Novembris[[Virsstundas  ]])","v":0},{"$f":"SUBTOTAL(109,Novembris[4. nedēļa])","v":0},{"$f":"SUBTOTAL(109,Novembris[[Virsstundas   ]])","v":0},{"$f":"SUBTOTAL(109,Novembris[5. nedēļa])","v":0},{"$f":"SUBTOTAL(109,Novembris[[Virsstundas    ]])","v":0}]
[null,"Novembris, kopā: Pastāvīgās darba stundas",{"$f":"SUM(Novembris[[#Totals],[1. nedēļa]],Novembris[[#Totals],[2. nedēļa]],Novembris[[#Totals],[3. nedēļa]],Novembris[[#Totals],[4. nedēļa]],Novembris[[#Totals],[5. nedēļa]])","v":0},"Novembris, kopā: Virsstundu",null,{"$f":"SUM(Novembris[[#Totals],[Virsstundu]],Novembris[[#Totals],[Virsstundas ]],Novembris[[#Totals],[Virsstundas  ]],Novembris[[#Totals],[Virsstundas   ]],Novembris[[#Totals],[Virsstundas    ]])","v":0}]
[]
[null,"Decembris","1. nedēļa","Virsstundu","2. nedēļa","Virsstundas ","3. nedēļa","Virsstundas  ","4. nedēļa","Virsstundas   ","5. nedēļa","Virsstundas    "]
[null,"Pirmdiena"]
[null,"Otrdiena"]
[null,"Trešdiena"]
[null,"Ceturtdiena"]
[null,"Piektdiena"]
[null,"Sestdiena"]
[null,"Svētdiena"]
[null,"Nedēļas kopējais stundu skaits",{"$f":"SUBTOTAL(109,Decembris[1. nedēļa])","v":0},{"$f":"SUBTOTAL(109,Decembris[Virsstundu])","v":0},{"$f":"SUBTOTAL(109,Decembris[2. nedēļa])","v":0},{"$f":"SUBTOTAL(109,Decembris[[Virsstundas ]])","v":0},{"$f":"SUBTOTAL(109,Decembris[3. nedēļa])","v":0},{"$f":"SUBTOTAL(109,Decembris[[Virsstundas  ]])","v":0},{"$f":"SUBTOTAL(109,Decembris[4. nedēļa])","v":0},{"$f":"SUBTOTAL(109,Decembris[[Virsstundas   ]])","v":0},{"$f":"SUBTOTAL(109,Decembris[5. nedēļa])","v":0},{"$f":"SUBTOTAL(109,Decembris[[Virsstundas    ]])","v":0}]
[null,"Decembris, kopā: Pastāvīgās darba stundas",{"$f":"SUM(Decembris[[#Totals],[1. nedēļa]],Decembris[[#Totals],[2. nedēļa]],Decembris[[#Totals],[3. nedēļa]],Decembris[[#Totals],[4. nedēļa]],Decembris[[#Totals],[5. nedēļa]])","v":0},"Decembris, kopā: Virsstundu",null,{"$f":"SUM(Decembris[[#Totals],[Virsstundu]],Decembris[[#Totals],[Virsstundas ]],Decembris[[#Totals],[Virsstundas  ]],Decembris[[#Totals],[Virsstundas   ]],Decembris[[#Totals],[Virsstundas    ]])","v":0}]